Cogmind - Beta 17 @@@ ROGUE MODE // 2026.07.07 @ 15:43:13 Player: Toddbert Result: Destroyed by N1-UJ7(R) with Subdweller Machine Gun Performance ------------- Evolutions (0) 0 Regions Visited (3) 600 Robots Destroyed (12) 60 Value Destroyed (241) 241 Prototype IDs (0) 0 Alien Tech Used (0) 0 Bonus (0) 0 TOTAL SCORE: 901 Bonus ------- None Cogmind --------- Core Integrity 0/250 Matter 261/300 Energy 100/100 System Corruption 0% Temperature Cool (0) Movement Core (200) Ox3 Location -10/Subcaves Parts ------- > --- POWER (1) -------- (None) > --- PROPULSION (2) --- (None) > --- UTILITY (2) ------ Medium Storage Unit Structural Scanner > --- WEAPON (2) ------- (None) > --- INVENTORY (10) --- Wheel VTOL Module VTOL Module Seismic Detector EM Pulse Gun Assault Rifle Mining Laser Peak State ------------ > --- POWER ------------ Light Ion Engine > --- PROPULSION ------- VTOL Module VTOL Module > --- UTILITY ---------- Small Storage Unit Hardened Light Armor Plating > --- WEAPON ----------- Assault Rifle Assault Rifle > --- INVENTORY -------- Ion Engine Aluminum Leg Aluminum Leg Wheel Wheel Light Assault Rifle [Rating: 10] Favorites ----------- Power Light Ion Engine Engine Light Ion Engine Propulsion Aluminum Leg Leg Aluminum Leg Wheel Wheel Flight Unit VTOL Module Utility Medium Storage Unit Device Structural Scanner Storage Medium Storage Unit Protection Hardened Light Armor Plating Weapon Assault Rifle Energy Cannon Subdweller Beam Cannon Ballistic Gun Assault Rifle Build | -11 -10 -10 -10 ------- Run | Yrd Mat Min Sub Slots Evolved . | . . . . Power . | . . . . Propulsion . | . . . . Utility . | . . . . Weapon . | . . . . Parts Attached 16 | 6 4 3 3 Power 2 | 1 . . 1 Engine 2 | 1 . . 1 Core . | . . . . Reactor . | . . . . Propulsion 6 | 2 2 2 . Treads . | . . . . Leg 2 | . . 2 . Wheel 2 | 2 . . . Hover . | . . . . Flight 2 | . 2 . . Utility 4 | 1 2 . 1 Device 1 | . . . 1 Storage 2 | 1 1 . . Processor . | . . . . Hackware . | . . . . Protection 1 | . 1 . . Artifact . | . . . . Weapon 4 | 2 . 1 1 Energy Gun . | . . . . Energy Cannon 1 | . . . 1 Ballistic Gun 3 | 2 . 1 . Ballistic Cannon . | . . . . Launcher . | . . . . Special Weapon . | . . . . Impact Weapon . | . . . . Slashing Weapon . | . . . . Piercing Weapon . | . . . . Special Melee Weapon . | . . . . Unidentified Prototypes . | . . . . Parts Lost 9 | . . 2 7 Power 2 | . . 1 1 Propulsion 3 | . . 1 2 Utility 1 | . . . 1 Weapon 3 | . . . 3 Highest Loss Streak 3 | . . 1 3 To Critical Strikes . | . . . . Average Backups 8 | 1 6 9 7 Power . | . 1 1 . Propulsion 2 | . 3 3 3 Utility 1 | . . 2 1 Weapon 2 | . 1 3 3 Tool/Special . | . . . . Unused Backups 3 | . . . 3 Power . | . . . . Propulsion . | . . . . Utility 1 | . . . 1 Weapon 2 | . . . 2 Tool/Special . | . . . . Average Slot Usage (%) 89 | . 94 93 77 Engine 9 | . 14 8 8 Leg 21 | . . 25 21 Wheel 4 | . 25 1 . Device 2 | . . . 9 Storage 14 | . 14 14 14 Protection 10 | . 9 14 3 Energy Cannon 2 | . . . 10 Ballistic Gun 22 | . 28 28 7 Peak Build Rating 10 | 6 10 9 9 Average Rating 7 | 4 7 8 6 On Entrance 5 | . 6 9 8 Avg Prop Armor Cover (%) 4 | . 4 . . Naked Turns . | . . . . Heaviest Build 24 | 12 22 22 24 Greatest Support 20 | 20 20 20 20 Greatest Overweight (x) 7 | 1 5 1 7 Average Overweight (x) . | . . . 1 Largest Inventory Capacity 10 | 8 10 10 10 Average Capacity 9 | 7 8 10 10 Most Carried 10 | 4 9 10 10 Average Carried 8 | 1 6 9 7 Final Capacity 10 | 8 10 10 10 Final Carried 10 | 4 9 10 7 Class Distribution -------------------- 100% | Mutant Dominant Class ---------------- Mutant | -10/Materials Mutant | -10/Mines Mutant | -10/Subcaves Resources | -11 -10 -10 -10 ----------- Run | Yrd Mat Min Sub Matter Collected 490 | 239 . 207 44 Remotely . | . . . . Salvage Created 296 | . 52 143 101 Parts 15 | . 3 5 7 Haulers Intercepted . | . . . . Recyclers Shooed . | . . . . Parts Field Recycled . | . . . . Retrieved Matter . | . . . . Parts Self-Destructed 10 | . . . 10 Prevented . | . . . . Parts Restored . | . . . . Kills | -11 -10 -10 -10 ------- Run | Yrd Mat Min Sub Combat Hostiles Destroyed 12 | . 3 4 5 Guns 8 | . 3 4 1 Cannons 3 | . . . 3 Classes Destroyed 3 | . 1 1 1 Swarmer 8 | . 3 2 3 Grunt 2 | . . 2 . Subdweller 2 | . . . 2 Best Kill Streak 3 | . 3 2 3 Combat Bots Only 3 | . 3 2 3 Max Kills in Single Turn 1 | . 1 1 1 Gunslinging . | . . . . Exploded . | . . . . Melee . | . . . . Uniques/NPCs Destroyed . | . . . . Combat | -11 -10 -10 -10 -------- Run | Yrd Mat Min Sub Hostile Shots Fired 139 | . 20 58 61 Missed 42 | . 8 15 19 Hits 97 | . 12 43 42 Projectile 97 | . 12 43 42 Critical Strikes 2 | . 1 . 1 Damage Taken 1222 | . 102 458 662 Core 253 | . 24 50 179 Absorbed by Shields . | . . . . Core Remaining (%) 100 | 100 . . . Volleys Fired 50 | . 7 20 23 Largest 2 | . 2 2 2 Hottest 100 | . 40 40 100 Shots Fired 87 | . 14 40 33 Gun 72 | . 14 40 18 Cannon 15 | . . . 15 Launcher . | . . . . Special . | . . . . Kinetic 72 | . 14 40 18 Thermal 15 | . . . 15 Explosive . | . . . . Electromagnetic . | . . . . Robot Hit Streak 7 | . 4 7 5 Robot Miss Streak 6 | . 2 6 3 Penetration Max . | . . . . Secondary Targets 1 | . . 1 . Max Gunslinging Chain 1 | . . 1 . Shots Hit Robots 47 | . 8 20 19 Core Hits 19 | . 3 7 9 Critical Kills 1 | . . . 1 Critical Parts Destroyed . | . . . . Critical Strikes 1 | . . . 1 Meltdown 1 | . . . 1 Melee Attacks . | . . . . Impact . | . . . . Slashing . | . . . . Piercing . | . . . . Sneak Attacks . | . . . . Combat Hostiles . | . . . . Follow-up Attacks . | . . . . Damage Inflicted 671 | . 111 254 306 Guns 457 | . 111 254 92 Cannons 214 | . . . 214 Explosions . | . . . . Melee . | . . . . Ramming . | . . . . Kinetic 457 | . 111 254 92 Thermal 214 | . . . 214 Explosive . | . . . . Electromagnetic . | . . . . Impact . | . . . . Slashing . | . . . . Piercing . | . . . . Highest Corruption . | . . . . Average Corruption . | . . . . Corruption Purged . | . . . . Corruption Blocked . | . . . . Overload Shots . | . . . . Overflow Damage 5 | . . . 5 Projectiles 5 | . . . 5 Explosions . | . . . . Melee . | . . . . Knockbacks . | . . . . Impact . | . . . . Kinetic . | . . . . Secondary . | . . . . Self-Inflicted Damage . | . . . . Shots . | . . . . Rammed . | . . . . Targets Rammed . | . . . . Kicked . | . . . . Crushed . | . . . . Highest Temperature 76 | . . 76 24 Average Temperature 35 | . . 40 13 Received Heat Transfer 243 | . 6 156 81 Siege Activations . | . . . . Martial Activations . | . . . . Shielding Activations . | . . . . Robots Disrupted . | . . . . Combat Hostiles . | . . . . Robots Corrupted . | . . . . Combat Hostiles . | . . . . Parts Fried . | . . . . Impact Corruptions . | . . . . Robots Melted 1 | . . . 1 Combat Hostiles 1 | . . . 1 Parts Melted 2 | . . . 2 Heat Transferred 296 | . . . 296 Parts Sabotaged . | . . . . Parts Stolen . | . . . . Parts Stripped . | . . . . Power Chain Reactions . | . . . . Alert | -11 -10 -10 -10 ------- Run | Yrd Mat Min Sub Maximum Alert Level . | . . . . Low Security (%) 100 | 100 100 100 . Level 1 . | . . . . Level 2 . | . . . . Level 3 . | . . . . Level 4 . | . . . . Level 5 . | . . . . High Security . | . . . . Max Security . | . . . . Peak Influence 60 | . 60 50 . Initial . | . . . . Average 7 | . 21 5 . Influence Increases 270 | . 70 100 100 Destroy 0b10 Robot/C 200 | . 60 80 60 Destroy Leader 40 | . 10 20 10 Lose Combat Pursuer 30 | . . . 30 Influence Decreases 270 | . 70 100 100 Time Decay 250 | . 70 90 90 Lost Part 20 | . . 10 10 Squads Dispatched 1 | . 1 . . Investigation . | . . . . Extermination . | . . . . Reinforcement 1 | . 1 . . Assault . | . . . . Garrison . | . . . . Intercept . | . . . . Searches Triggered . | . . . . Construction Impeded . | . . . . Haulers Reinforced . | . . . . Active Scanning Responses . | . . . . Cargo Convoy Interrupts . | . . . . Stealth | -11 -10 -10 -10 --------- Run | Yrd Mat Min Sub Distress Signals . | . . . . Communications Jammed . | . . . . Distress Signals . | . . . . Times Spotted 19 | . 7 5 7 Peak Tracking Total 3 | . 3 3 3 Tactical Retreats 1 | . . . 1 Traps | -11 -10 -10 -10 ------- Run | Yrd Mat Min Sub Traps Triggered . | . . . . Indirectly . | . . . . Trap Hack Attempts . | . . . . Triggered . | . . . . Disarmed . | . . . . Reprogrammed . | . . . . Reused . | . . . . Traps Extracted . | . . . . Installed . | . . . . Triggered . | . . . . Machines | -11 -10 -10 -10 ---------- Run | Yrd Mat Min Sub Machines Disabled . | . . . . Max in Single Turn . | . . . . Machines Repaired . | . . . . Machines Dismantled . | . . . . Machines Sabotaged . | . . . . Overloaded Fab Kills . | . . . . Hacking | -11 -10 -10 -10 --------- Run | Yrd Mat Min Sub Machines Accessed 1 | . 1 . . Terminals 1 | . 1 . . Fabricators . | . . . . Repair Stations . | . . . . Recycling Units . | . . . . Scanalyzers . | . . . . Garrison Access . | . . . . Total Hacks 2 | . 2 . . Successful 1 | . 1 . . Failed 1 | . 1 . . Catastrophic . | . . . . Database Lockouts . | . . . . Manual . | . . . . Terminals 2 | . 2 . . Fabricators . | . . . . Repair Stations . | . . . . Recycling Units . | . . . . Scanalyzers . | . . . . Garrison Access . | . . . . Terminal Hacks 1 | . 1 . . Recall Investigation 1 | . 1 . . Fabricator Hacks . | . . . . Repair Station Hacks . | . . . . Recycling Unit Hacks . | . . . . Scanalyzer . | . . . . Garrison Access Hacks . | . . . . Unauthorized Hacks . | . . . . Terminals . | . . . . Fabricators . | . . . . Repair Stations . | . . . . Recycling Units . | . . . . Scanalyzers . | . . . . Garrison Access . | . . . . Data Cores Recovered . | . . . . Used . | . . . . Hacking Detections 1 | . 1 . . Full Trace Events . | . . . . Feedback Events . | . . . . Feedback Blocked . | . . . . Robot Schematics Acquired . | . . . . Robots Built . | . . . . Authchips . | . . . . Time . | . . . . Total Robot Build Rating . | . . . . Part Schematics Acquired . | . . . . Parts Built . | . . . . Authchips . | . . . . Time . | . . . . Total Part Build Rating . | . . . . Part Studies Acquired . | . . . . Parts Repaired . | . . . . Time . | . . . . Parts Recycled . | . . . . Recycled Matter . | . . . . Retrieved Matter . | . . . . Retrieved Components . | . . . . Parts Scanalyzed . | . . . . Part Schematics Acquired . | . . . . Parts Damaged . | . . . . Bothacking | -11 -10 -10 -10 ------------ Run | Yrd Mat Min Sub Used RIF Installer . | . . . . Robots Hacked . | . . . . Non-combat . | . . . . Combat . | . . . . Robot Hacks Applied . | . . . . Relay Couplers Released . | . . . . Fabnet Peak Effective % . | . . . . Robots Rewired . | . . . . Allies Hacked . | . . . . Hacks Repelled . | . . . . Allies | -11 -10 -10 -10 -------- Run | Yrd Mat Min Sub Total Allies . | . . . . Largest Group . | . . . . Highest-Rated Group . | . . . . Highest-Rated Ally . | . . . . Total Orders . | . . . . Ally Attacks . | . . . . Total Damage . | . . . . Kills . | . . . . Allies Corrupted . | . . . . Allies Melted . | . . . . Intel | -11 -10 -10 -10 ------- Run | Yrd Mat Min Sub Active Infowar (turns) 295 | . . . 295 Structural 295 | . . . 295 Robot Analysis Total . | . . . . Derelict Logs Recovered 2 | . . 1 1 Drone Launches . | . . . . Drone Recoveries . | . . . . Exploration | -11 -10 -10 -10 ------------- Run | Yrd Mat Min Sub Turns Passed 1642 | 76 191 955 420 Spaces Moved 1037 | 81 168 594 194 Core 15 | 10 1 . 4 Treads . | . . . . Legs 758 | . . 568 190 Wheels 261 | 71 164 26 . Hover . | . . . . Flight 3 | . 3 . . Fastest Speed 50 | 50 80 95 120 Average Speed 141 | 78 92 150 187 Slowest Speed 400 | 100 355 190 400 Overloaded Moves . | . . . . Propulsion Burnouts . | . . . . Robots Hopped . | . . . . Potential Cave-ins . | . . . . Cave-ins Triggered . | . . . . Exploration Rate (%) 31 | 4 26 78 18 Regions Visited 3 Branch Regions 2 Pre-discovered Areas 2 | . . 1 1 Known Exits Taken . | . . . . Unknown Exits Taken 3 | 1 1 1 . Scrap Searched . | . . . . Spaces Dug . | . . . . Terrain Destroyed 5 | . . . 5 Melee . | . . . . Projectile 5 | . . . 5 AOE . | . . . . Terrain Rammed . | . . . . Walls Destroyed . | . . . . Machines Disabled . | . . . . Actions | -11 -10 -10 -10 --------- Run | Yrd Mat Min Sub Total 1123 | 90 191 620 222 Wait . | . . . . Move 1034 | 80 167 593 194 Hop . | . . . . Pick Up 9 | 4 2 2 1 Fast Attach 10 | 6 4 . . Attach 10 | . 4 3 3 Detach 9 | . 7 2 . Swap . | . . . . Drop 1 | . . . 1 Fire 50 | . 7 20 23 Melee . | . . . . Ram . | . . . . Kick . | . . . . Crush . | . . . . Escape Stasis . | . . . . Rewire . | . . . . Trap . | . . . . Miscellaneous . | . . . . Route ------- -11/Scrapyard -10/Materials -10/Mines -10/Subcaves (discovered 1 exit: [*Mat]) History --------- Turn | Location | Event 26 | -11/Scrapyard | Discovered new exit (range 15) 77 | -11/Scrapyard | Entered Materials 235 | -10/Materials | Discovered new exit (range 16) 268 | -10/Materials | Entered Mines 315 | -10/Mines | Build established: Mutant 668 | -10/Mines | Learned location of Storage (-9) 971 | -10/Mines | Discovered new exit (range 8) 1033 | -10/Mines | Found a hidden stash of uninstalled traps 1103 | -10/Mines | Learned Materials emergency access door positions 1223 | -10/Mines | Entered Subcaves 1229 | -10/Subcaves | Shifting Twisted Machinery released Sub. Optics 1237 | -10/Subcaves | Learned location of Mines (-9) 1246 | -10/Subcaves | Shifting Twisted Machinery released Sub. Beam Cannon 1372 | -10/Subcaves | Lost 3 parts (1u2w) 1443 | -10/Subcaves | Core integrity fell below 50% 1626 | -10/Subcaves | Discovered new exit (range 13) 1639 | -10/Subcaves | Core integrity fell below 20% 1643 | -10/Subcaves | Destroyed by N1-UJ7(R) with Subdweller Machine Gun Last Messages --------------- Hrd. Light Armor Plating destroyed. Lgt. Assault Rifle destroyed. JG-U9W(R) suffers critical hit (Meltdown). Sub. Power Source melted. Disposable Heat Sink melted. Subatomizers dissect the Sub. Beam Cannon. S-10 Pest destroyed. Destroyed Flight Unit. Aluminum Leg destroyed. S-10 Pest destroyed. Lgt. Assault Rifle fries itself beyond repair. S-10 Pest destroyed. Flight Unit fries itself beyond repair. Acquired 10 matter. Acquired 15 matter. 01-OST(u) builds Twisted Machinery. EXIT=FOUND Aluminum Leg destroyed. Ion Engine destroyed. Sub. Beam Cannon destroyed. Map ----- +----------------------------------------------------+ | ???????????####### % ???????????? | | ???????????#### ########## ???????????? | | ?????????????## ########## ???????????? | | ?????????????### ########## ???????????? | | ?????????????## #### ????????????? | | ?????????????### #### ? ?????????????? | | ????????????#### ## ? ???????????????? | | ???????????#### ## ### ????????????????? | | ?????????##### ### ### ??????????????????? | | ????????##### #### ## ##??????????????????? | | ????????### ### ###??????????????????? | | ??????#### ####???####??????????? | | ?????### ##### ## ###########?????????? | | ?????## ########### ###### ###? #####??? | | ????### ##??######## ##? ######?? | | ????## ??????????#### ##? ###?? | | ????# ????????????#### #### ### ##?? | | ?????## ???????#####??#### #### #### ?? | | ?????## ??????#######?#### #### ### ##?????? | | ?????????????#### ##?## #### ###????? | | ?????????????### #### ## ####???? | | ???????????#### < #### ## ####??? | | ??????????? ### #### #### " " ###?? | | ??????????? ########## " """ ##?? | | ???????????????? # ######### "" """"" "#?? | | ????????????????## R @###### " ## """?????? | | ???????????????? # ##R ##### "### ""?????? | | ????????????????## ? # ### #####? "##???? | | ????????????????????### ## ####?? ##???? | | ????????????????????### #######????? ##???? | | ?????????????????????### ############?????? #???? | | ?????????????????????###########?????????????????? | | ??????????????????????####???????????????????????? | | ?????????????????????????????????????????????????? | | ?????????????????????????????????????????????????? | | ?????????????????????????????????????????????????? | | ?????????????????????????????????????????????????? | | ?????????????????????????????????????????????????? | | ?????????????????????????????????????????????????? | | ?????????????????????????????????????????????????? | | ?????????????????????????????????????????????????? | | ?????????????????????????????????????????????????? | | ?????????????????????????????????????????????????? | | ?????????????????????????????????????????????????? | | ?????????????????????????????????????????????????? | | ?????????????????????????????????????????????????? | | ?????????????????????????????????????????????????? | | ?????????????????????????????????????????????????? | | ?????????????????????????????????????????????????? | | ?????????????????????????????????????????????????? | +----------------------------------------------------+ Best States ------------- Heat Dissipation 25 Energy Generation 10 Energy Capacity 250 Matter Stores 279 Matter Capacity 300 Sight Range 16 Terrain Scan Density 10 Armor Coverage 150 Evasion (%) 55 Item Schematics ----------------- None Robot Schematics ------------------ None Fabricated ------------ Nothing Repaired ---------- Nothing Studied --------- None Alien Tech Used ----------------- None Achievements -------------- None Challenges ------------ None Game ------ Seed MinesnifferZipSightfinder Manual? 0 Play Time 00:17:37 Cumulative 8.2 hours Start 2026.07.04 @ 17:20:38 End 2026.07.07 @ 15:43:13 Sessions 3 Manual Loads 0 Difficulty Rogue Special Mode None Game No. 24 Rogue 24 Adventurer 0 Explorer 0 Win Type - Total 0 Types 0/0/0/0/0/0/0/0/0/0 Lore% 10 Gallery% 7 Achievement% 9 Wizard Run 0 Options --------- Layout 1 ASCII 1 Keyboard 0 Movement Arrows Keybinds 0 Fullscreen 1 Font 48/Smallcaps Map View 50x35 Zoom Use 0% Tactical HUD 0 Map Filters NONE Filters NONE Steam 1 RUN: 440cf0a2-1653-4a14-8196-dabcfb255d25